Cogmind - Beta 11.1 @@@ ROGUE MODE // 2022.11.17 @ 19:26:01 Player: TLFP Result: Destroyed by as-20534 with Assembled Rifle Performance ------------- Evolutions (0) 0 Regions Visited (2) 400 Robots Destroyed (2) 10 Value Destroyed (81) 81 Prototype IDs (0) 0 Alien Tech Used (0) 0 Bonus (0) 0 TOTAL SCORE: 491 Bonus ------- None Cogmind --------- Core Integrity 0/250 Matter 300/300 Energy 99/100 System Corruption 0% Temperature Cool (0) Movement Core (50) Location -10/Mines Parts ------- > --- POWER (1) -------- (None) > --- PROPULSION (2) --- (None) > --- UTILITY (2) ------ (None) > --- WEAPON (2) ------- (None) > --- INVENTORY (5) ---- Light Treads Light Treads Medium Storage Unit EM Pulse Gun Light Assault Rifle Peak State ------------ > --- POWER ------------ Light Ion Engine > --- PROPULSION ------- Compact Wheel Compact Wheel > --- UTILITY ---------- Small Storage Unit Medium Storage Unit > --- WEAPON ----------- Light Assault Rifle Light Assault Rifle > --- INVENTORY -------- Light Ion Engine Light Treads Light Treads Aluminum Leg Aluminum Leg EM Pulse Gun [Rating: 7] Favorites ----------- Power Light Ion Engine Engine Light Ion Engine Propulsion Compact Wheel Leg Aluminum Leg Wheel Compact Wheel Utility Small Storage Unit Storage Small Storage Unit Protection Power Shielding Weapon Light Assault Rifle Ballistic Gun Light Assault Rifle Build | -11 -10 -10 ------- Run | Scr Mat Min Slots Evolved . | . . . Power . | . . . Propulsion . | . . . Utility . | . . . Weapon . | . . . Parts Attached 9 | . 7 2 Power 1 | . 1 . Engine 1 | . 1 . Core . | . . . Reactor . | . . . Propulsion 3 | . 2 1 Treads . | . . . Leg . | . . . Wheel 3 | . 2 1 Hover . | . . . Flight . | . . . Utility 3 | . 2 1 Device . | . . . Storage 2 | . 2 . Processor . | . . . Hackware . | . . . Protection 1 | . . 1 Artifact . | . . . Weapon 2 | . 2 . Energy Gun . | . . . Energy Cannon . | . . . Ballistic Gun 2 | . 2 . Ballistic Cannon . | . . . Launcher . | . . . Special Weapon . | . . . Impact Weapon . | . . . Slashing Weapon . | . . . Piercing Weapon . | . . . Special Melee Weapon . | . . . Unidentified Prototypes . | . . . Parts Lost 3 | . . 3 Power 1 | . . 1 Propulsion 2 | . . 2 Utility . | . . . Weapon . | . . . Highest Loss Streak 3 | . . 3 To Critical Strikes . | . . . Average Slot Usage (%) 83 | . 81 86 Engine 12 | . 12 13 Leg 4 | . 7 . Wheel 23 | . 21 26 Storage 14 | . 14 13 Protection 4 | . . 10 Ballistic Gun 24 | . 25 22 Naked Turns 5 | . . 5 Heaviest Build 26 | 10 25 26 Greatest Support 32 | 20 32 32 Greatest Overweight (x) . | . . . Average Overweight (x) . | . . . Largest Inventory Capacity 15 | . 15 15 Average Capacity 11 | . 9 14 Most Carried 10 | . 10 10 Average Carried 6 | . 6 7 Final Capacity 15 | 8 15 5 Final Carried 7 | 6 7 5 Class Distribution -------------------- 100% | Mutant Dominant Class ---------------- Mutant | -10/Materials Mutant | -10/Mines Resources | -11 -10 -10 ----------- Run | Scr Mat Min Matter Collected 322 | 200 46 76 Remotely . | . . . Salvage Created 87 | . 87 . Parts 4 | . 4 . Haulers Intercepted . | . . . Recyclers Shooed . | . . . Parts Field Recycled . | . . . Retrieved Matter . | . . . Parts Self-Destructed . | . . . Prevented . | . . . Kills | -11 -10 -10 ------- Run | Scr Mat Min Combat Hostiles Destroyed 2 | . 2 . Guns 2 | . 2 . Classes Destroyed 1 | . 1 . Grunt 2 | . 2 . Best Kill Streak 2 | . 2 . Combat Bots Only 2 | . 2 . Max Kills in Single Turn 1 | . 1 . Gunslinging . | . . . Exploded . | . . . Melee . | . . . Uniques/NPCs Destroyed . | . . . Combat | -11 -10 -10 -------- Run | Scr Mat Min Damage Taken 519 | . 135 384 Core 254 | . 38 216 Absorbed by Shields . | . . . Redirected to Shielding 10 | . . 10 Core Remaining (%) 100 | 100 . . Volleys Fired 16 | . 15 1 Largest 2 | . 2 2 Hottest 40 | . 40 40 Shots Fired 32 | . 30 2 Gun 32 | . 30 2 Cannon . | . . . Launcher . | . . . Special . | . . . Kinetic 32 | . 30 2 Thermal . | . . . Explosive . | . . . Electromagnetic . | . . . Robot Hit Streak 6 | . 6 5 Robot Miss Streak 2 | . 2 . Penetration Max . | . . . Secondary Targets . | . . . Shots Hit Robots 23 | . 21 2 Core Hits 7 | . 7 . Critical Kills . | . . . Critical Parts Destroyed . | . . . Critical Strikes . | . . . Melee Attacks . | . . . Impact . | . . . Slashing . | . . . Piercing . | . . . Sneak Attacks . | . . . Combat Hostiles . | . . . Follow-up Attacks . | . . . Damage Inflicted 189 | . 173 16 Guns 189 | . 173 16 Cannons . | . . . Explosions . | . . . Melee . | . . . Ramming . | . . . Kinetic 189 | . 173 16 Thermal . | . . . Explosive . | . . . Electromagnetic . | . . . Impact . | . . . Slashing . | . . . Piercing . | . . . Highest Corruption . | . . . Average Corruption . | . . . Corruption Purged . | . . . Corruption Blocked . | . . . Overload Shots . | . . . Overflow Damage . | . . . Projectiles . | . . . Explosions . | . . . Melee . | . . . Knockbacks . | . . . Impact . | . . . Kinetic . | . . . Secondary . | . . . Self-Inflicted Damage . | . . . Shots . | . . . Rammed . | . . . Targets Rammed . | . . . Kicked . | . . . Crushed . | . . . Highest Temperature 21 | . 21 . Average Temperature 8 | . 8 . Received Heat Transfer 235 | . 72 163 Siege Activations . | . . . Robots Corrupted . | . . . Combat Hostiles . | . . . Parts Fried . | . . . Impact Corruptions . | . . . Robots Melted . | . . . Combat Hostiles . | . . . Parts Melted . | . . . Heat Transferred . | . . . Parts Sabotaged . | . . . Parts Stolen . | . . . Parts Stripped . | . . . Power Chain Reactions . | . . . Missiles Intercepted . | . . . Alert | -11 -10 -10 ------- Run | Scr Mat Min Peak Influence 144 | . 144 85 Initial 55 | . . 55 Average 63 | . 62 65 Maximum Alert Level . | . . . Low Security (%) 100 | . 100 100 Level 1 . | . . . Level 2 . | . . . Level 3 . | . . . Level 4 . | . . . Level 5 . | . . . High Security . | . . . Max Security . | . . . Squads Dispatched 1 | . 1 . Investigation 1 | . 1 . Extermination . | . . . Reinforcement . | . . . Assault . | . . . Garrison . | . . . Intercept . | . . . Searches Triggered . | . . . Construction Impeded . | . . . Haulers Reinforced . | . . . Active Scanning Responses . | . . . Cargo Convoy Interrupts . | . . . Stealth | -11 -10 -10 --------- Run | Scr Mat Min Distress Signals 3 | . 2 1 Communications Jammed . | . . . Distress Signals . | . . . Times Spotted 18 | . 5 13 Peak Tracking Total 11 | . 5 11 Tactical Retreats 2 | . 1 1 Traps | -11 -10 -10 ------- Run | Scr Mat Min Traps Triggered 2 | . 2 . Indirectly . | . . . Trap Hack Attempts . | . . . Triggered . | . . . Disarmed . | . . . Reprogrammed . | . . . Reused . | . . . Traps Extracted . | . . . Installed . | . . . Triggered . | . . . Machines | -11 -10 -10 ---------- Run | Scr Mat Min Machines Disabled . | . . . Max in Single Turn . | . . . Machines Sabotaged . | . . . Garrisons Compromised . | . . . Overloaded Fab Kills . | . . . Hacking | -11 -10 -10 --------- Run | Scr Mat Min Machines Accessed 1 | . 1 . Terminals 1 | . 1 . Fabricators . | . . . Repair Stations . | . . . Recycling Units . | . . . Scanalyzers . | . . . Garrison Access . | . . . Total Hacks 3 | . 3 . Successful 1 | . 1 . Failed 2 | . 2 . Catastrophic . | . . . Database Lockouts . | . . . Manual . | . . . Terminals 3 | . 3 . Fabricators . | . . . Repair Stations . | . . . Recycling Units . | . . . Scanalyzers . | . . . Garrison Access . | . . . Terminal Hacks 1 | . 1 . Locate Traps 1 | . 1 . Fabricator Hacks . | . . . Repair Station Hacks . | . . . Recycling Unit Hacks . | . . . Scanalyzer . | . . . Garrison Access Hacks . | . . . Unauthorized Hacks . | . . . Terminals . | . . . Fabricators . | . . . Repair Stations . | . . . Recycling Units . | . . . Scanalyzers . | . . . Garrison Access . | . . . Data Cores Recovered . | . . . Used . | . . . Hacking Detections 1 | . 1 . Full Trace Events . | . . . Feedback Events . | . . . Feedback Blocked . | . . . Robot Schematics Acquired . | . . . Robots Built . | . . . Authchips . | . . . Time . | . . . Total Robot Build Rating . | . . . Part Schematics Acquired . | . . . Parts Built . | . . . Authchips . | . . . Time . | . . . Total Part Build Rating . | . . . Parts Repaired . | . . . Time . | . . . Parts Recycled . | . . . Recycled Matter . | . . . Retrieved Matter . | . . . Retrieved Components . | . . . Parts Scanalyzed . | . . . Part Schematics Acquired . | . . . Parts Damaged . | . . . Bothacking | -11 -10 -10 ------------ Run | Scr Mat Min Used RIF Installer . | . . . Robots Hacked . | . . . Non-combat . | . . . Combat . | . . . Robot Hacks Applied . | . . . Relay Couplers Released . | . . . Fabnet Peak Effective % . | . . . Robots Rewired . | . . . Allies Hacked . | . . . Hacks Repelled . | . . . Allies | -11 -10 -10 -------- Run | Scr Mat Min Total Allies . | . . . Largest Group . | . . . Highest-Rated Group . | . . . Highest-Rated Ally . | . . . Total Orders . | . . . Ally Attacks . | . . . Total Damage . | . . . Kills . | . . . Allies Corrupted . | . . . Allies Melted . | . . . Intel | -11 -10 -10 ------- Run | Scr Mat Min Robot Analysis Total . | . . . Derelict Logs Recovered 1 | . . 1 Drone Launches . | . . . Drone Recoveries . | . . . Exploration | -11 -10 -10 ------------- Run | Scr Mat Min Turns Passed 370 | . 226 144 Spaces Moved 314 | 1 162 151 Core 18 | . . 18 Treads . | . . . Legs 49 | 1 48 . Wheels 247 | . 114 133 Hover . | . . . Flight . | . . . Fastest Speed 50 | 120 100 50 Average Speed 96 | 120 105 87 Slowest Speed 120 | 120 120 100 Overloaded Moves . | . . . Propulsion Burnouts . | . . . Robots Hopped . | . . . Cave-ins Triggered . | . . . Exploration Rate (%) 27 | 2 36 45 Regions Visited 2 Branch Regions 1 Pre-discovered Areas 1 | . . 1 Known Exits Taken . | . . . Unknown Exits Taken 2 | 1 1 . Scrap Searched 1 | . . 1 Spaces Dug . | . . . Terrain Destroyed . | . . . Melee . | . . . Projectile . | . . . AOE . | . . . Terrain Rammed . | . . . Walls Destroyed . | . . . Machines Disabled . | . . . Actions | -11 -10 -10 --------- Run | Scr Mat Min Total 356 | . 192 164 Wait 3 | . 1 2 Move 312 | . 161 151 Hop . | . . . Pick Up 8 | . 6 2 Fast Attach . | . . . Attach 6 | . 5 1 Detach 2 | . . 2 Swap 3 | . 2 1 Drop 6 | . 2 4 Fire 16 | . 15 1 Melee . | . . . Ram . | . . . Kick . | . . . Crush . | . . . Escape Stasis . | . . . Rewire . | . . . Trap . | . . . Miscellaneous . | . . . Route ------- -11/Scrapyard -10/Materials -10/Mines History --------- Turn | Location | Event 1 | -11/Scrapyard | Discovered new exit (range 0) 1 | -11/Scrapyard | Entered Materials 217 | -10/Materials | Discovered new exit (range 6) 227 | -10/Materials | Entered Mines 300 | -10/Mines | Build established: Mutant 302 | -10/Mines | Assembled infested the area 307 | -10/Mines | Assisted by a Guerilla fighting off Assembled 340 | -10/Mines | Learned location of Mines (-9) 360 | -10/Mines | Core integrity fell below 50% 367 | -10/Mines | Core integrity fell below 20% 371 | -10/Mines | Destroyed by as-20534 with Assembled Rifle Last Messages --------------- squad. 00313_ AC-077(h): "I'll hold them off! Go on ahead or try to find another way!" 00313_ AC-077(h) suffers critical hit (Burn). 00315_ T-07 Excavator sends out distress signal. 00318_ AC-077(h) heat damages Flexi-carbon Leg, Bore Cannon, Armor Integrity Analyzer. 00318_ AC-077(h) critical meltdown. 00318_ Acquired 38 matter. 00324_ G-34 Mercenary destroyed. 00326_ as-43279 destroyed. 00335_ K-01 Serf collects debris. 00340_ Acquired derelict log, extracted data. World map updated: -9/Mines. 00360_ Dropped Aluminum Leg. 00361_ Dropped Lrg. Storage Unit. 00362_ Dropped Power Shielding. 00362_ Lgt. Ion Engine destroyed. 00364_ Wheel destroyed. 00366_ Com. Wheel destroyed. Map ----- +----------------------------------------------------+ | ## ###??????????????????????????????????????????? | | ## #????????????????????????????????????????????? | | # ##???????????????????????????????????????????? | | ##??????????????????????????????????????????? | | # ##?????????????????????????????????????????? | | # #?????????????????????????????????????????? | | ## #?????????????????????????????????????????? | | ?## ##????????????????????????????????????????? | | ??## ##???????????????????????????????????????? | | ???# #???????????????????????????????????????? | | ???# #???????????????????????????????????????? | | ??## ##??????????????????????????????????????? | | ### ##??????????????###????????????????????? | | # ######????????## #???????????????????? | | !#????????# ???????????????????? | | #????????? ????????#########??? | | #### ####! #????????? ???????## ##?? | | ##???# ###??# #????????? ???????# #?? | | ?????# #????# ###???????# #???????# #?? | | ?????# #????# #???????# #???????# #?? | | ????? ????# #???????# #????????# #?? | | ????? ????#### #???????# #?#####???# = #??? | | ?????"" ???????# #?#?????# ### ##??# ==*#??? | | ?????"" ???????# #?# ???# a#### !!##?? | | ????""" ???????# #?#t ## a ## [ #?? | | ??????? ???????# #??# @ aa #?? | | ??????? ???????# #??## """ ## ##?? | | ??????? ???????# ##### """= #### #####??? | | ???????????????# ### """%a #??# ####??????? | | ???????????????# #### * #??# #?????????? | | ???????????????#### #??## #### #?????????? | | ??????????????????# #???###### #?????????? | | ??????????????????# #????????# ######?????????? | | ??????????????????# #????????# #??????????????? | | ??????????????????# #????????# #??????????????? | | ??????????????????# #????????# #??????????????? | | ?????????????????## ##???????# #??????????????? | | ????????????????## #???????# #??????????????? | | ???????????????## ##??????# #??????????????? | | ??????????????## #####??# #??????????????? | | ??????????????# ##?# #??????????????? | | ??????????????# ### #??????????????? | | ??????????????## ## ##?????????????? | | ?##????????????### ##????????????? | | ## ?????????????## ####?????????? | | # ????????????## ###### #?????????? | | #???????##### ##????# #????? | | #?????## ##?????# #???? | | ####?# ##?????? ####### #???? | | #?# ##??????? #????????#???? | +----------------------------------------------------+ Best States ------------- Heat Dissipation 25 Energy Generation 10 Energy Capacity 125 Matter Stores 300 Matter Capacity 300 Sight Range 16 Terrain Scan Density 10 Power Shielding 33 Evasion (%) 55 Item Schematics ----------------- None Robot Schematics ------------------ None Fabricated ------------ Nothing Alien Tech Used ----------------- None Achievements -------------- None Challenges ------------ None Game ------ Seed CoordinationSpliceFlail Manual? 0 Play Time 00:07:59 Cumulative 84.5 hours Start 2022.07.30 @ 20:39:06 End 2022.11.17 @ 19:26:01 Sessions 2 Manual Loads 0 Difficulty Rogue Special Mode None Game No. 60 Rogue 20 Adventurer 32 Explorer 8 Win Type - Total 1 Types 1/0/0/0/0/0/0/0/0 Lore% 51 Gallery% 54 Achievement% 49 Wizard Run 0 Options --------- ASCII 0 Keyboard 0 Movement Mouse Keybinds 0 Fullscreen 1 Font 18/SmallcapsGlow Map View 76x50 Tactical HUD 1 Map Filters NONE Filters NONE Steam 1 RUN: acde6806-db86-429a-abca-6e7cb1a41e5b